fUST/lending_fUST_20250611
["ID","MTS","AMOUNT","RATE_DAILY","PERIOD"]
[365367217,1749621040198,-460.0,0.00021095,4]
[365367219,1749621040207,-1089.15,0.00021095,4]
[365367221,1749621040216,-460.0,0.00021095,4]
[365367223,1749621040225,-460.0,0.00021095,4]
[365367225,1749621040234,-460.0,0.00021095,4]
[365367226,1749621040243,-2691.41,0.00021095,4]
[365367228,1749621040253,-460.0,0.00021095,4]
[365367230,1749621040262,-460.0,0.00021095,4]
[365367232,1749621040271,-2961.65,0.00021095,4]
[365367234,1749621040281,-460.0,0.00021095,4]
[365367237,1749621040293,-2743.26,0.00021095,4]
[365367239,1749621040303,-516.45,0.00021095,4]
[365367240,1749621040312,-310.10999925,0.00021095,4]
[365367241,1749621040321,-570.20991369,0.00021095,4]
[365367242,1749621040330,-460.0,0.00021095,4]
[365367243,1749621040340,-460.0,0.00021095,4]
[365367244,1749621040349,-467.10957354,0.00021095,4]
[365367245,1749621040358,-460.0,0.00021095,4]
[365367247,1749621040367,-1427.72,0.00021095,4]
[365367249,1749621040376,-899.27,0.00021095,4]
[365367251,1749621040385,-460.0,0.00021095,4]
[365367253,1749621040395,-430.0,0.00021095,4]
[365367255,1749621040404,-203.2182719,0.00021095,4]
[365367257,1749621040413,-460.0,0.00021095,4]
[365367259,1749621040422,-405.72572788,0.00021095,4]
[365367261,1749621040431,-460.0,0.00021095,4]
[365367263,1749621040440,-460.0,0.00021095,4]
[365367265,1749621040449,-460.0,0.00021095,4]
[365367267,1749621040458,-460.0,0.00021095,4]
[365367269,1749621040467,-460.0,0.00021095,4]
[365367270,1749621040476,-460.0,0.00021095,4]
[365367272,1749621040485,-1241.19,0.00021095,4]
[365367274,1749621040494,-460.0,0.00021095,4]
[365367277,1749621040503,-400.51105847,0.00021095,4]
[365367279,1749621040513,-460.0,0.00021095,4]
[365367281,1749621040521,-1257.03,0.00021095,4]
[365367284,1749621040531,-460.0,0.00021095,4]
[365367287,1749621040540,-2179.93183661,0.00021176,4]
[365367290,1749621040549,-2179.93183661,0.00021314,5]
[365367292,1749621040558,-460.0,0.00021369,4]
[365367295,1749621040567,-328.40484658,0.00021369,4]
[365367297,1749621040577,-440.0,0.00021369,4]
[365367300,1749621040586,-460.0,0.00021369,4]
[365367303,1749621040595,-460.0,0.00021369,4]
[365367305,1749621040604,-300.0,0.00021369,4]
[365367308,1749621040614,-240.0,0.00021369,4]
[365367311,1749621040623,-240.0,0.00021369,4]
[365367314,1749621040631,-360.0,0.00021369,4]
[365367317,1749621040641,-360.0,0.00021369,4]
[365367319,1749621040650,-460.0,0.00021369,4]
[365367322,1749621040659,-460.0,0.00021369,4]
[365367325,1749621040668,-399.56559776,0.00021369,4]
[365367328,1749621040677,-504.44,0.00021369,4]
[365367331,1749621040686,-250.0,0.00021369,4]
[365367333,1749621040695,-460.0,0.00021369,4]
[365367334,1749621040706,-460.0,0.00021369,4]
[365367337,1749621040715,-460.0,0.00021369,4]
[365367340,1749621040724,-460.0,0.00021369,4]
[365367342,1749621040734,-2794.46,0.00021369,4]
[365367344,1749621040743,-460.0,0.00021369,4]
[365367346,1749621040752,-460.0,0.00021369,4]
[365367349,1749621040761,-460.0,0.00021369,4]
[365367351,1749621040770,-460.0,0.00021369,4]
[365367354,1749621040779,-460.0,0.00021369,4]
[365367357,1749621040789,-1128.57,0.00021369,4]
[365367359,1749621040798,-965.35,0.00021369,4]
[365367361,1749621040807,-460.0,0.00021369,4]
[365367363,1749621040817,-584.39,0.00021369,4]
[365367366,1749621040826,-460.0,0.00021369,4]
[365367368,1749621040836,-460.0,0.00021369,4]
[365367371,1749621040845,-460.0,0.00021369,4]
[365367374,1749621040854,-481.02,0.00021369,4]
[365367375,1749621040863,-460.0,0.00021369,4]
[365367378,1749621040872,-460.0,0.00021369,4]
[365367381,1749621040882,-460.0,0.00021369,4]
[365367383,1749621040890,-400.0,0.00021369,4]
[365367386,1749621040899,-460.0,0.00021369,2]
[365367388,1749621040908,-2733.38,0.00021369,4]
[365367391,1749621040918,-939.22,0.00021369,4]
[365367394,1749621040928,-790.34,0.00021369,4]
[365367395,1749621040939,-1546.53,0.00021369,4]
[365367398,1749621040949,-460.0,0.00021369,4]
[365367400,1749621040958,-1073.56,0.00021369,4]
[365367402,1749621040967,-1955.74,0.00021369,4]
[365367404,1749621040977,-460.0,0.00021369,4]
[365367407,1749621040986,-460.0,0.00021369,4]
[365367410,1749621040995,-1089.15,0.00021369,4]
[365367413,1749621041005,-460.0,0.00021369,4]
[365367415,1749621041014,-460.0,0.00021369,4]
[365367418,1749621041023,-2691.41,0.00021369,4]
[365367420,1749621041032,-290.0,0.00021369,4]
[365367422,1749621041041,-414.36294163,0.00021369,4]
[365367425,1749621041050,-2961.65,0.00021369,4]
[365367427,1749621041059,-460.0,0.00021369,4]
[365367430,1749621041068,-2743.26,0.00021369,4]
[365367432,1749621041077,-516.45,0.00021369,4]
[365367435,1749621041087,-517.84,0.00021369,4]
[365367437,1749621041097,-460.0,0.00021369,4]
[365367440,1749621041105,-460.0,0.00021369,4]
[365367443,1749621041114,-1427.72,0.00021369,4]
[365367444,1749621041123,-899.27,0.00021369,4]
[365367447,1749621041132,-460.0,0.00021369,4]
[365367450,1749621041141,-460.0,0.00021369,4]
[365367452,1749621041150,-460.0,0.00021369,4]
[365367455,1749621041159,-460.0,0.00021369,4]
[365367458,1749621041168,-1241.19,0.00021369,4]
[365367460,1749621041177,-460.0,0.00021369,4]
[365367462,1749621041186,-460.0,0.00021369,4]
[365367464,1749621041196,-1257.03,0.00021369,4]
[365367466,1749621041205,-2179.93183661,0.00021452,5]
[365367468,1749621041214,-2179.93183661,0.0002159,5]
[365367470,1749621041225,-460.0,0.00021643,4]
[365367472,1749621041234,-420.0,0.00021643,4]
[365367474,1749621041243,-152.43938122,0.00021643,4]
[365367476,1749621041252,-460.0,0.00021643,4]
[365367478,1749621041262,-504.44,0.00021643,4]
[365367480,1749621041271,-460.0,0.00021643,4]
[365367483,1749621041282,-460.0,0.00021643,4]
[365367487,1749621041292,-460.0,0.00021643,4]
[365367490,1749621041301,-208.2703138,0.00021643,4]
[365367493,1749621041311,-2794.46,0.00021643,4]
[365367496,1749621041320,-276.00236887,0.00021643,4]
[365367499,1749621041330,-460.0,0.00021643,4]
[365367500,1749621041339,-460.0,0.00021643,4]
[365367503,1749621041350,-1128.57,0.00021643,4]
[365367506,1749621041359,-965.35,0.00021643,4]
[365367510,1749621041369,-584.39,0.00021643,4]
[365367513,1749621041379,-460.0,0.00021643,4]
[365367516,1749621041388,-460.0,0.00021643,4]
[365367519,1749621041397,-460.0,0.00021643,4]
[365367521,1749621041406,-481.02,0.00021643,4]
[365367524,1749621041416,-460.0,0.00021643,4]
[365367526,1749621041425,-460.0,0.00021643,4]
[365367529,1749621041435,-593.31,0.00021643,2]
[365367533,1749621041445,-2733.38,0.00021643,4]
[365367535,1749621041454,-939.22,0.00021643,4]
[365367538,1749621041463,-790.34,0.00021643,4]
[365367540,1749621041473,-1546.53,0.00021643,4]
[365367543,1749621041482,-1073.56,0.00021643,4]
[365367546,1749621041491,-1955.74,0.00021643,4]
[365367549,1749621041500,-460.0,0.00021643,4]
[365367552,1749621041509,-460.0,0.00021643,4]
[365367555,1749621041518,-1089.15,0.00021643,4]
[365367558,1749621041527,-460.0,0.00021643,4]
[365367561,1749621041537,-460.0,0.00021643,4]
[365367563,1749621041546,-2691.41,0.00021643,4]
[365367566,1749621041555,-2961.65,0.00021643,4]
[365367569,1749621041565,-2743.26,0.00021643,4]
[365367572,1749621041574,-460.0,0.00021643,4]
[365367575,1749621041583,-516.45,0.00021643,4]
[365367578,1749621041592,-460.0,0.00021643,4]
[365367581,1749621041601,-1427.72,0.00021643,4]
[365367584,1749621041611,-899.27,0.00021643,4]
[365367586,1749621041621,-460.0,0.00021643,4]
[365367589,1749621041630,-460.0,0.00021643,4]
[365367592,1749621041639,-460.0,0.00021643,4]
[365367595,1749621041649,-1241.19,0.00021643,4]
[365367598,1749621041658,-460.0,0.00021643,4]
[365367601,1749621041667,-460.0,0.00021643,4]
[365367604,1749621041676,-1257.03,0.00021643,4]
[365367607,1749621041685,-458.8,0.000217,2]
[365367610,1749621041695,-2179.93183661,0.00021728,5]
[365367612,1749621041704,-906.86118508,0.00021817,2]
[365367615,1749621041713,-2179.93183661,0.00021866,6]
[365367617,1749621041723,-350.0,0.00021917,4]
[365367620,1749621041732,-504.44,0.00021917,4]
[365367623,1749621041741,-460.0,0.00021917,4]
[365367626,1749621041750,-460.0,0.00021917,4]
[365367629,1749621041759,-2794.46,0.00021917,4]
[365367632,1749621041769,-460.0,0.00021917,4]
[365367634,1749621041778,-460.0,0.00021917,4]
[365367637,1749621041787,-1128.57,0.00021917,4]
[365367640,1749621041796,-965.35,0.00021917,4]
[365367643,1749621041806,-584.39,0.00021917,4]
[365367646,1749621041815,-326.82,0.00021917,4]
[365367649,1749621041824,-460.0,0.00021917,4]
[365367652,1749621041833,-450.59,0.00021917,4]
[365367654,1749621041842,-481.02,0.00021917,4]
[365367657,1749621041851,-460.0,0.00021917,4]
[365367660,1749621041861,-460.0,0.00021917,4]
[365367663,1749621041870,-500.0,0.00021917,2]
[365367666,1749621041879,-2733.38,0.00021917,4]
[365367668,1749621041888,-939.22,0.00021917,4]
[365367670,1749621041897,-790.34,0.00021917,4]
[365367673,1749621041906,-1546.53,0.00021917,4]
[365367676,1749621041915,-1073.56,0.00021917,4]
[365367679,1749621041925,-1955.74,0.00021917,4]
[365367682,1749621041937,-344.44043676,0.00021917,4]
[365367685,1749621041946,-460.0,0.00021917,4]
[365367688,1749621041956,-1089.15,0.00021917,4]
[365367691,1749621041964,-280.61050951,0.00021917,4]
[365367694,1749621041975,-460.0,0.00021917,4]
[365367696,1749621041984,-2691.41,0.00021917,4]
[365367699,1749621041993,-2961.65,0.00021917,4]
[365367701,1749621042003,-283.99911829,0.00021917,4]
[365367704,1749621042012,-2743.26,0.00021917,4]
[365367707,1749621042022,-516.45,0.00021917,4]
[365367710,1749621042031,-460.0,0.00021917,4]
[365367713,1749621042040,-1427.72,0.00021917,4]
[365367716,1749621042049,-899.27,0.00021917,4]
[365367719,1749621042058,-460.0,0.00021917,4]
[365367722,1749621042067,-460.0,0.00021917,4]
[365367724,1749621042076,-460.0,0.00021917,4]
[365367726,1749621042085,-1241.19,0.00021917,4]
[365367728,1749621042095,-460.0,0.00021917,4]
[365367730,1749621042104,-460.0,0.00021917,4]
[365367732,1749621042113,-1257.03,0.00021917,4]
[365367735,1749621042122,-1185.38,0.00022,7]
[365367738,1749621042131,-197.0,0.00022,2]
[365367741,1749621042140,-2179.93183661,0.00022003,6]
[365367743,1749621042149,-772.04,0.00022041,2]
[365367746,1749621042158,-420.0,0.00022097,2]
[365367749,1749621042167,-420.0,0.00022097,2]
[365367752,1749621042176,-500.0,0.00022098,2]
[365367755,1749621042185,-500.0,0.00022098,2]
[365367757,1749621042194,-612.44146029,0.00022098,2]
[365367760,1749621042203,-500.0,0.00022098,2]
[365367763,1749621042212,-500.0,0.00022098,2]
[365367766,1749621042221,-500.0,0.00022098,2]
[365367769,1749621042230,-500.0,0.00022098,2]
[365367771,1749621042239,-500.0,0.00022098,2]
[365367773,1749621042248,-500.0,0.00022098,2]
[365367776,1749621042257,-500.0,0.00022098,2]
[365367779,1749621042267,-500.0,0.00022098,2]
[365367782,1749621042276,-500.0,0.00022098,2]
[365367785,1749621042285,-500.0,0.00022098,2]
[365367788,1749621042294,-500.0,0.00022098,2]
[365367791,1749621042303,-500.0,0.00022098,2]
[365367793,1749621042311,-500.0,0.00022098,2]
[365367796,1749621042320,-530.0,0.00022098,2]
[365367799,1749621042329,-500.0,0.00022098,2]
[365367801,1749621042338,-503.46257878,0.00022098,2]
[365367804,1749621042348,-500.0,0.00022098,2]
[365367826,1749621042450,-500.0,0.00022098,2]
[365367829,1749621042460,-500.0,0.00022098,2]
[365367832,1749621042469,-400.95,0.00022098,2]
[365367834,1749621042479,-500.0,0.00022098,2]
[365367836,1749621042488,-500.0,0.00022098,2]
[365367838,1749621042497,-500.0,0.00022098,2]
[365367840,1749621042506,-219.73993583,0.00022098,2]
[365367842,1749621042516,-500.0,0.00022098,2]
[365367844,1749621042526,-500.0,0.00022098,2]
[365367846,1749621042535,-367.86297513,0.00022098,2]
[365367848,1749621042544,-500.0,0.00022098,2]
[365367850,1749621042554,-500.0,0.00022098,2]
[365367852,1749621042563,-500.0,0.00022098,2]
[365367854,1749621042572,-500.0,0.00022098,2]
[365367856,1749621042581,-500.0,0.00022098,2]
[365367858,1749621042591,-543.21458589,0.00022098,2]
[365367860,1749621042600,-500.0,0.00022098,2]
[365367862,1749621042610,-500.0,0.00022098,2]
[365367863,1749621042619,-500.0,0.00022098,2]
[365367865,1749621042628,-500.0,0.00022098,2]
[365367867,1749621042638,-500.0,0.00022098,2]
[365367869,1749621042647,-500.0,0.00022098,2]
[365367871,1749621042657,-500.0,0.00022098,2]
[365367873,1749621042667,-500.0,0.00022098,2]
[365367875,1749621042676,-500.0,0.00022098,2]
[365367877,1749621042685,-500.0,0.00022098,2]
[365367879,1749621042695,-500.0,0.00022098,2]
[365367881,1749621042704,-500.0,0.00022098,2]
[365367883,1749621042714,-500.0,0.00022098,2]
[365367885,1749621042723,-500.0,0.00022098,2]
[365367887,1749621042732,-500.0,0.00022098,2]
[365367889,1749621042742,-500.0,0.00022098,2]
[365367891,1749621042751,-500.0,0.00022098,2]
[365367894,1749621042760,-500.0,0.00022098,2]
[365367897,1749621042770,-500.0,0.00022098,2]
[365367899,1749621042780,-500.0,0.00022098,2]
[365367902,1749621042789,-500.0,0.00022098,2]
[365367905,1749621042798,-500.0,0.00022098,2]
[365367908,1749621042807,-384.09333669,0.00022098,2]
[365367911,1749621042817,-500.0,0.00022098,2]
[365367915,1749621042826,-2179.93183661,0.00022141,6]
[365367918,1749621042835,-504.44,0.00022191,4]
[365367921,1749621042845,-460.0,0.00022191,4]
[365367924,1749621042855,-460.0,0.00022191,4]
[365367927,1749621042864,-2794.46,0.00022191,4]
[365367930,1749621042873,-460.0,0.00022191,4]
[365367932,1749621042882,-460.0,0.00022191,4]
[365367934,1749621042891,-1128.57,0.00022191,4]
[365367935,1749621042900,-965.35,0.00022191,4]
[365367937,1749621042909,-584.39,0.00022191,4]
[365367941,1749621042919,-460.0,0.00022191,4]
[365367942,1749621042930,-481.02,0.00022191,4]
[365367945,1749621042940,-460.0,0.00022191,4]
[365367948,1749621042949,-460.0,0.00022191,4]
[365367951,1749621042959,-2733.38,0.00022191,4]
[365367954,1749621042968,-939.22,0.00022191,4]
[365367957,1749621042978,-790.34,0.00022191,4]
[365367960,1749621042988,-1546.53,0.00022191,4]
[365367963,1749621042997,-1073.56,0.00022191,4]
[365367968,1749621043008,-1955.74,0.00022191,4]
[365367969,1749621043017,-460.0,0.00022191,4]
[365367972,1749621043027,-1089.15,0.00022191,4]
[365367975,1749621043036,-460.0,0.00022191,4]
[365367978,1749621043045,-2691.41,0.00022191,4]
[365367981,1749621043054,-2961.65,0.00022191,4]
[365367984,1749621043064,-2743.26,0.00022191,4]
[365367987,1749621043073,-516.45,0.00022191,4]
[365367990,1749621043081,-460.0,0.00022191,4]
[365367993,1749621043090,-1427.72,0.00022191,4]
[365367996,1749621043100,-899.27,0.00022191,4]
[365367998,1749621043109,-460.0,0.00022191,4]
[365368001,1749621043118,-460.0,0.00022191,4]
[365368004,1749621043127,-460.0,0.00022191,4]
[365368007,1749621043136,-1241.19,0.00022191,4]
[365368010,1749621043145,-460.0,0.00022191,4]
[365368013,1749621043154,-460.0,0.00022191,4]
[365368016,1749621043163,-1257.03,0.00022191,4]
[365368019,1749621043173,-42406.97,0.000222,7]
[365368022,1749621043182,-160.0,0.000222,7]
[365368025,1749621043191,-213.16534259,0.000222,7]
[365368028,1749621043200,-769.33,0.00022228,5]
[365368031,1749621043209,-229.71724145,0.00022249,2]
[365368034,1749621043218,-160.0,0.00022249,2]
[365368037,1749621043227,-2179.93183661,0.00022279,6]
[365368040,1749621043236,-11860.25191276,0.00022291,2]
[365368043,1749621043245,-160.0,0.00022291,2]
[365368046,1749621043254,-835.03886221,0.00022291,2]
[365368049,1749621043264,-160.0,0.00022291,2]
[365368052,1749621043273,-424.19973472,0.00022291,2]
[365368055,1749621043282,-160.0,0.00022291,2]
[365368058,1749621043291,-844.64040732,0.00022291,2]
[365368061,1749621043300,-800.0,0.00022293,2]
[365368064,1749621043308,-769.33,0.00022328,5]
[365368067,1749621043318,-160.0,0.0002237,3]
[365368070,1749621043327,-2179.93183661,0.00022417,7]
[365368073,1749621043336,-769.33,0.00022428,3]
[365368076,1749621043346,-906.86118505,0.00022459,2]
[365368079,1749621043355,-188.66,0.00022464,2]
[365368082,1749621043364,-504.44,0.00022465,4]
[365368084,1749621043374,-460.0,0.00022465,4]
[365368088,1749621043383,-460.0,0.00022465,4]
[365368090,1749621043392,-400.0,0.00022465,4]
[365368093,1749621043401,-190.03,0.00022465,4]
[365368096,1749621043410,-2794.46,0.00022465,4]
[365368099,1749621043419,-460.0,0.00022465,4]
[365368102,1749621043428,-460.0,0.00022465,4]
[365368104,1749621043437,-1128.57,0.00022465,4]
[365368107,1749621043446,-965.35,0.00022465,4]
[365368109,1749621043455,-584.39,0.00022465,4]
[365368111,1749621043464,-460.0,0.00022465,4]
[365368113,1749621043474,-481.02,0.00022465,4]
[365368115,1749621043483,-460.0,0.00022465,4]
[365368117,1749621043492,-460.0,0.00022465,4]
[365368119,1749621043501,-2733.38,0.00022465,4]
[365368121,1749621043511,-939.22,0.00022465,4]
[365368123,1749621043520,-790.34,0.00022465,4]
[365368126,1749621043529,-1546.53,0.00022465,4]
[365368127,1749621043538,-1073.56,0.00022465,4]
[365368129,1749621043548,-1955.74,0.00022465,4]
[365368131,1749621043557,-460.0,0.00022465,4]
[365368134,1749621043566,-1089.15,0.00022465,4]
[365368136,1749621043576,-460.0,0.00022465,4]
[365368138,1749621043585,-2691.41,0.00022465,4]
[365368139,1749621043594,-2961.65,0.00022465,4]
[365368141,1749621043603,-2743.26,0.00022465,4]
[365368143,1749621043613,-516.45,0.00022465,4]
[365368145,1749621043622,-460.0,0.00022465,4]
[365368147,1749621043631,-1427.72,0.00022465,4]
[365368149,1749621043640,-899.27,0.00022465,4]
[365368152,1749621043653,-427.24405743,0.00022465,4]
[365368154,1749621043662,-518.72,0.00022465,4]
[365368156,1749621043671,-460.0,0.00022465,4]
[365368158,1749621043680,-1241.19,0.00022465,4]
[365368160,1749621043689,-460.0,0.00022465,4]
[365368162,1749621043698,-460.0,0.00022465,4]
[365368164,1749621043707,-1257.03,0.00022465,4]
[365368166,1749621043716,-769.33,0.00022528,2]
[365368168,1749621043725,-2179.93183661,0.00022555,7]
[365368170,1749621043735,-769.33,0.00022628,2]
[365368172,1749621043744,-2179.93183661,0.00022693,7]
[365368174,1749621043753,-769.33,0.00022728,2]
[365368176,1749621043763,-504.44,0.00022739,4]
[365368179,1749621043776,-460.0,0.00022739,4]
[365368181,1749621043785,-460.0,0.00022739,4]
[365368183,1749621043794,-2794.46,0.00022739,4]
[365368185,1749621043803,-460.0,0.00022739,4]
[365368187,1749621043812,-460.0,0.00022739,4]
[365368189,1749621043821,-1128.57,0.00022739,4]
[365368191,1749621043830,-965.35,0.00022739,4]
[365368192,1749621043839,-584.39,0.00022739,4]
[365368195,1749621043848,-465.29,0.00022739,4]
[365368196,1749621043857,-481.02,0.00022739,4]
[365368199,1749621043867,-460.0,0.00022739,4]
[365368201,1749621043879,-460.0,0.00022739,4]
[365368202,1749621043888,-2733.38,0.00022739,4]
[365368204,1749621043897,-939.22,0.00022739,4]
[365368206,1749621043907,-790.34,0.00022739,4]
[365368208,1749621043916,-1546.53,0.00022739,4]
[365368210,1749621043927,-1073.56,0.00022739,4]
[365368212,1749621043938,-1955.74,0.00022739,4]
[365368214,1749621043947,-460.0,0.00022739,4]
[365368216,1749621043957,-1089.15,0.00022739,4]
[365368219,1749621043966,-460.0,0.00022739,4]
[365368220,1749621043976,-2691.41,0.00022739,4]
[365368222,1749621043985,-2961.65,0.00022739,4]
[365368225,1749621043995,-2743.26,0.00022739,4]
[365368226,1749621044005,-516.45,0.00022739,4]
[365368229,1749621044015,-539.72976915,0.00022739,4]
[365368230,1749621044023,-1427.72,0.00022739,4]
[365368232,1749621044033,-899.27,0.00022739,4]
[365368234,1749621044042,-460.0,0.00022739,4]
[365368236,1749621044051,-1241.19,0.00022739,4]
[365368238,1749621044060,-460.0,0.00022739,4]
[365368240,1749621044069,-460.0,0.00022739,4]
[365368242,1749621044079,-1257.03,0.00022739,4]
[365368244,1749621044088,-769.33,0.00022828,6]
[365368246,1749621044098,-2179.93183661,0.00022831,8]
[365368249,1749621044108,-151.0,0.00022859,2]
[365368251,1749621044117,-5000.0,0.00022859,2]
[365368253,1749621044126,-151.0,0.00022859,2]
[365368255,1749621044135,-151.0,0.00022859,2]
[365368257,1749621044144,-151.0,0.00022859,2]
[365368259,1749621044154,-151.0,0.00022859,2]
[365368260,1749621044163,-151.0,0.00022859,2]
[365368262,1749621044172,-151.0,0.00022859,2]
[365368265,1749621044182,-151.0,0.00022859,2]
[365368267,1749621044192,-151.0,0.00022859,2]
[365368269,1749621044201,-151.0,0.00022859,2]
[365368271,1749621044210,-151.0,0.00022859,2]
[365368272,1749621044219,-151.0,0.00022859,2]
[365368274,1749621044228,-151.0,0.00022859,2]
[365368276,1749621044238,-170.69580346,0.00022859,2]
[365368278,1749621044247,-207.4,0.00022859,2]
[365368281,1749621044256,-377.85658625,0.00022875,2]
[365368283,1749621044265,-769.33,0.00022928,5]
[365368284,1749621044276,-2179.93183661,0.00022969,8]
[365368286,1749621044285,-1029.39,0.00022999,2]
[365368288,1749621044294,-458.8,0.00023,7]
[365368290,1749621044303,-504.44,0.00023013,4]
[365368292,1749621044312,-460.0,0.00023013,4]
[365368294,1749621044321,-460.0,0.00023013,4]
[365368296,1749621044331,-2794.46,0.00023013,4]
[365368298,1749621044340,-460.0,0.00023013,4]
[365368300,1749621044350,-460.0,0.00023013,4]
[365368302,1749621044359,-1128.57,0.00023013,4]
[365368304,1749621044368,-965.35,0.00023013,4]
[365368306,1749621044377,-584.39,0.00023013,4]
[365368308,1749621044386,-481.02,0.00023013,4]
[365368310,1749621044396,-460.0,0.00023013,4]
[365368312,1749621044405,-460.0,0.00023013,4]
[365368314,1749621044414,-2733.38,0.00023013,4]
[365368316,1749621044423,-939.22,0.00023013,4]
[365368318,1749621044432,-790.34,0.00023013,4]
[365368320,1749621044441,-1546.53,0.00023013,4]
[365368322,1749621044450,-1073.56,0.00023013,4]
[365368324,1749621044460,-1955.74,0.00023013,4]
[365368326,1749621044469,-460.0,0.00023013,4]
[365368328,1749621044479,-1089.15,0.00023013,4]
[365368330,1749621044488,-460.0,0.00023013,4]
[365368332,1749621044497,-2691.41,0.00023013,4]
[365368334,1749621044507,-2961.65,0.00023013,4]
[365368336,1749621044516,-2743.26,0.00023013,4]
[365368338,1749621044525,-516.45,0.00023013,4]
[365368340,1749621044534,-1427.72,0.00023013,4]
[365368342,1749621044543,-899.27,0.00023013,4]
[365368344,1749621044552,-460.0,0.00023013,4]
[365368346,1749621044561,-1241.19,0.00023013,4]
[365368348,1749621044571,-460.0,0.00023013,4]
[365368350,1749621044580,-460.0,0.00023013,4]
[365368352,1749621044590,-1257.03,0.00023013,4]
[365368354,1749621044600,-769.33,0.00023028,6]
[365368356,1749621044608,-365.0707398,0.00023041,2]
[365368358,1749621044617,-365.0707398,0.00023041,2]
[365368360,1749621044627,-160.0,0.0002306,4]
[365368362,1749621044636,-623.0,0.00023072,2]
[365368364,1749621044645,-567.2069987,0.00023075,2]
[365368366,1749621044654,-600.0,0.00023075,2]
[365368368,1749621044663,-502.39152022,0.00023075,2]
[365368369,1749621044673,-501.9396443,0.00023081,2]
[365368371,1749621044682,-906.86118505,0.000231,2]
[365368373,1749621044692,-2179.93183661,0.00023107,8]
[365368375,1749621044701,-769.33,0.00023128,2]
[365368377,1749621044710,-1185.38,0.000232,7]
[365368379,1749621044719,-298.323544,0.00023208,2]
[365368381,1749621044728,-623.0,0.00023211,2]
[365368383,1749621044737,-769.33,0.00023228,4]
[365368385,1749621044747,-2179.93183661,0.00023245,8]
[365368387,1749621044756,-500.0,0.00023256,2]
[365368389,1749621044765,-504.44,0.00023287,4]
[365368401,1749621044852,-460.0,0.00023287,4]
[365368403,1749621044872,-460.0,0.00023287,4]
[365368405,1749621044884,-2794.46,0.00023287,4]
[365368407,1749621044893,-460.0,0.00023287,4]
[365368409,1749621044902,-460.0,0.00023287,4]
[365368411,1749621044912,-1128.57,0.00023287,4]
[365368413,1749621044921,-965.35,0.00023287,4]
[365368415,1749621044934,-584.39,0.00023287,4]
[365368417,1749621044943,-481.02,0.00023287,4]
[365368419,1749621044952,-460.0,0.00023287,4]
[365368421,1749621044961,-460.0,0.00023287,4]
[365368423,1749621044971,-2733.38,0.00023287,4]
[365368425,1749621044980,-939.22,0.00023287,4]
[365368427,1749621044989,-790.34,0.00023287,4]
[365368429,1749621044998,-1546.53,0.00023287,4]
[365368431,1749621045009,-1073.56,0.00023287,4]
[365368433,1749621045018,-1955.74,0.00023287,4]
[365368435,1749621045028,-460.0,0.00023287,4]